bitfinex/quotes_BTCUSD_20260126
["timestamp","ask_amount","ask_price","bid_price","bid_amount"]
[1769445470630,0.03,87707.0,87696.0,0.02325489]
[1769445470995,0.03,87699.0,87688.0,0.17532]
[1769445471187,0.03,87699.0,87684.0,0.17532]
[1769445471781,0.03,87694.0,87680.0,0.68789165]
[1769445472109,0.03,87692.0,87682.0,0.68789165]
[1769445472256,0.63217378,87704.0,87683.0,0.17532]
[1769445472465,0.02379191,87726.0,87704.0,0.01]
[1769445472669,0.0113999,87720.0,87704.0,0.00984287]
[1769445472999,0.0113999,87720.0,87702.0,0.02325489]
[1769445473000,0.03,87711.0,87695.0,0.02325489]
[1769445473207,0.03,87711.0,87696.0,0.68789165]
[1769445473383,0.03,87711.0,87692.0,0.17532]
[1769445473384,0.03,87711.0,87698.0,0.02325489]
[1769445473584,0.03,87711.0,87699.0,0.04311238]
[1769445474107,0.03,87710.0,87699.0,0.04311238]
[1769445474559,0.03,87710.0,87699.0,0.02325489]
[1769445474969,0.03,87709.0,87699.0,0.02325489]
[1769445475117,0.63091265,87720.0,87699.0,0.02325489]
[1769445475329,0.12523613,87719.0,87699.0,0.02325489]
[1769445475533,0.18224468,87718.0,87699.0,0.02325489]
[1769445475730,0.09421393,87717.0,87699.0,0.02325489]
[1769445475935,0.09421393,87717.0,87684.0,0.1140674]
[1769445475936,0.63318469,87698.0,87674.0,0.17528]
[1769445476147,0.03,87690.0,87675.0,0.02325489]
[1769445476360,0.03,87688.0,87674.0,0.19853489]
[1769445476558,0.03,87688.0,87674.0,0.17528]
[1769445476559,0.03,87684.0,87674.0,0.17528]
[1769445477211,0.03,87679.0,87649.0,0.68789165]
[1769445477469,0.03,87679.0,87640.0,0.49122903]
[1769445477470,0.03,87679.0,87655.0,0.68789165]
[1769445477665,0.23602798,87679.0,87655.0,0.02325489]
[1769445477831,0.03,87675.0,87655.0,0.02325489]
[1769445478211,0.10738539,87675.0,87655.0,0.02325489]
[1769445479354,0.03,87675.0,87655.0,0.02325489]
[1769445479995,0.06842779,87684.0,87657.0,0.02325489]
[1769445479996,0.03,87674.0,87657.0,0.02325489]
[1769445480235,0.03,87674.0,87658.0,0.02325489]
[1769445480607,0.01140341,87693.0,87659.0,0.68789165]
[1769445480811,0.06842032,87694.0,87662.0,0.02325489]
[1769445481011,0.17532,87705.0,87660.0,0.47981872]
[1769445481012,0.03,87690.0,87666.0,0.02325489]
[1769445481210,0.03,87688.0,87669.0,0.68789165]
[1769445481413,0.03,87688.0,87672.0,0.02325489]
[1769445481592,0.03,87688.0,87673.0,0.02325489]
[1769445482159,0.03,87687.0,87673.0,0.02325489]
[1769445482363,0.03,87687.0,87674.0,0.68789165]
[1769445482600,0.03,87687.0,87676.0,0.68789165]
[1769445482946,0.03,87687.0,87664.0,0.01140719]
[1769445482947,0.03,87687.0,87677.0,0.71114654]
[1769445483331,0.03,87686.0,87677.0,0.71114654]
[1769445483540,0.01140211,87703.0,87678.0,0.02325489]
[1769445483739,0.01140211,87703.0,87677.0,0.68789165]
[1769445483740,0.01140237,87701.0,87679.0,0.02325489]
[1769445483902,0.01140237,87701.0,87680.0,0.02325489]
[1769445484084,0.0114025,87700.0,87680.0,0.02325489]
[1769445484305,0.03,87697.0,87680.0,0.02325489]
[1769445484763,0.03,87697.0,87670.0,0.01140641]
[1769445484764,0.03,87697.0,87681.0,0.71114654]
[1769445484964,0.03,87697.0,87681.0,0.09436954]
[1769445485167,0.03,87697.0,87681.0,0.02325489]
[1769445485322,0.04140276,87698.0,87681.0,0.02325489]
[1769445485511,0.03,87698.0,87681.0,0.02325489]
[1769445486176,0.03,87698.0,87682.0,0.02325489]
[1769445486390,0.04140081,87713.0,87685.0,0.68789165]
[1769445486526,0.0414012,87710.0,87688.0,0.02325489]
[1769445486743,0.01140068,87714.0,87684.0,0.02325489]
[1769445486744,0.01140198,87704.0,87684.0,0.02325489]
[1769445486952,0.03,87703.0,87685.0,0.02325489]
[1769445487220,0.03,87703.0,87683.0,0.17532]
[1769445487221,0.03,87703.0,87687.0,0.68789165]
[1769445487487,0.03,87701.0,87688.0,0.02325489]
[1769445488436,0.03,87700.0,87688.0,0.02325489]
[1769445489480,0.03,87703.0,87688.0,0.02325489]
[1769445489689,0.03,87701.0,87688.0,0.02325489]
[1769445490266,0.00015713,87688.0,87674.0,0.02325489]
[1769445490517,0.03,87683.0,87674.0,0.02325489]
[1769445491470,0.03,87682.0,87674.0,0.02325489]
[1769445492400,0.03,87681.0,87674.0,0.02325489]
[1769445492823,0.01140211,87703.0,87682.0,0.68789165]
[1769445493029,0.11385416,87702.0,87684.0,0.02325489]
[1769445493242,0.11385416,87701.0,87687.0,0.68789165]
[1769445493441,0.03,87706.0,87688.0,0.02325489]
[1769445493689,0.03,87704.0,87688.0,0.02325489]
[1769445493890,0.03,87702.0,87688.0,0.02325489]
[1769445494943,0.03,87701.0,87688.0,0.02325489]
[1769445495982,0.03,87699.0,87688.0,0.02325489]
[1769445496197,0.03,87697.0,87688.0,0.02325489]
[1769445496522,0.00015713,87688.0,87660.0,0.68789165]
[1769445496850,0.00015713,87688.0,87665.0,0.02325489]
[1769445497052,0.03,87689.0,87668.0,0.68789165]
[1769445497377,0.03,87689.0,87672.0,0.68789165]
[1769445497574,0.03,87689.0,87661.0,0.23236758]
[1769445497575,0.03,87689.0,87675.0,0.02325489]
[1769445497719,0.03,87688.0,87675.0,0.02325489]
[1769445498747,0.03,87687.0,87675.0,0.02325489]
[1769445499569,0.04782457,87687.0,87675.0,0.02325489]
[1769445500032,0.03069676,87698.0,87675.0,0.02325489]
[1769445500203,0.03,87697.0,87687.0,0.00984287]
[1769445500353,0.09104226,87716.0,87689.0,0.66409939]
[1769445500552,0.11391052,87715.0,87693.0,0.66409939]
[1769445500755,0.11391052,87714.0,87696.0,0.02408513]
[1769445500960,0.00693351,87723.0,87687.0,0.24374488]
[1769445500961,0.23925159,87723.0,87699.0,0.66409939]
[1769445501171,0.03,87718.0,87700.0,0.02408513]
[1769445501412,0.04140016,87718.0,87700.0,0.02408513]
[1769445501729,0.03,87716.0,87701.0,0.09290358]
[1769445501936,0.03,87709.0,87691.0,0.66409939]
[1769445502143,0.03,87707.0,87692.0,0.02408513]
[1769445502349,0.03,87705.0,87687.0,0.17532]
[1769445502557,0.03,87702.0,87687.0,0.17532]
[1769445503104,0.03,87702.0,87688.0,0.66409939]
[1769445503327,0.03,87701.0,87690.0,0.02408513]
[1769445504474,0.01140159,87707.0,87690.0,0.02408513]
[1769445504475,0.03,87700.0,87690.0,0.02408513]
[1769445505062,0.00015713,87690.0,87687.0,0.17532]
[1769445505265,0.00015713,87690.0,87676.0,0.17528]
[1769445505463,0.03,87688.0,87676.0,0.17528]
[1769445505864,0.04140406,87688.0,87676.0,0.17528]
[1769445506072,0.03,87688.0,87676.0,0.17528]
[1769445506389,0.03,87686.0,87676.0,0.17528]
[1769445506714,0.04140432,87686.0,87673.0,0.02408513]
[1769445506899,0.03,87677.0,87670.0,8.05e-05]
[1769445507984,0.03,87676.0,87670.0,8.05e-05]
[1769445508551,8.05e-05,87670.0,87659.0,0.06972513]
[1769445508754,8.05e-05,87670.0,87660.0,0.02408513]
[1769445508755,0.0300805,87670.0,87660.0,0.02408513]
[1769445508951,0.03,87670.0,87660.0,0.02408513]
[1769445509419,0.03,87670.0,87661.0,0.09093757]
[1769445509621,0.03,87670.0,87659.0,0.04564]
[1769445509622,0.17532,87687.0,87665.0,0.66409939]
[1769445509829,0.03,87686.0,87668.0,0.02434927]
[1769445510042,0.03,87686.0,87672.0,0.02434927]
[1769445510207,0.03,87686.0,87673.0,0.02434927]
[1769445510572,0.03,87684.0,87661.0,0.02434927]
[1769445511013,0.03,87680.0,87662.0,0.02434927]
[1769445511818,0.03,87680.0,87664.0,0.02434927]
[1769445512133,0.03,87679.0,87667.0,0.02434927]
[1769445513117,0.03,87678.0,87667.0,0.02434927]
[1769445514051,0.03810292,87682.0,87667.0,0.02434927]
[1769445514207,0.03,87677.0,87667.0,0.02434927]
[1769445514422,0.03,87672.0,87655.0,0.02408513]
[1769445514622,0.03071261,87672.0,87656.0,0.06884557]
[1769445515463,0.03,87671.0,87656.0,0.06884557]
[1769445515841,0.03,87671.0,87657.0,0.02408513]
[1769445516566,0.03,87677.0,87657.0,0.02408513]
[1769445516742,0.03,87677.0,87661.0,0.02408513]
[1769445516924,0.03,87677.0,87663.0,0.02408513]
[1769445517127,0.03,87677.0,87664.0,0.06881845]
[1769445517310,0.03,87671.0,87654.0,0.19967633]
[1769445517516,0.00015713,87664.0,87654.0,0.1755912]
[1769445517973,0.00071261,87666.0,87654.0,0.1755912]
[1769445518401,0.03,87667.0,87654.0,0.1755912]
[1769445518577,0.03,87666.0,87657.0,0.66409939]
[1769445518794,0.05702529,87681.0,87659.0,0.66409939]
[1769445518795,0.00071261,87681.0,87659.0,0.66409939]
[1769445518974,0.06468084,87685.0,87662.0,0.02408513]
[1769445519317,0.06468084,87685.0,87666.0,0.02408513]
[1769445519318,0.01140471,87683.0,87666.0,0.02408513]
[1769445519516,0.01140523,87679.0,87666.0,0.02408513]
[1769445519672,0.05702879,87675.0,87655.0,0.66409939]
[1769445519875,0.03,87674.0,87656.0,0.02566883]
[1769445520094,0.03,87674.0,87654.0,0.1755912]
[1769445520095,0.03,87674.0,87658.0,0.02566883]
[1769445520296,0.03,87674.0,87660.0,0.02566883]
[1769445520478,0.03,87674.0,87661.0,0.02566883]
[1769445520677,0.03,87674.0,87663.0,0.02566883]
[1769445520998,0.03,87673.0,87665.0,0.02566883]
[1769445521818,0.03,87676.0,87665.0,0.02566883]
[1769445522033,0.03,87673.0,87665.0,0.02566883]
[1769445522630,0.03,87673.0,87655.0,0.66409939]
[1769445522843,0.03,87673.0,87657.0,0.02791759]
[1769445523056,0.03,87672.0,87659.0,0.66409939]
[1769445523266,0.03,87672.0,87660.0,0.66409939]
[1769445523479,0.03,87672.0,87661.0,0.66409939]
[1769445523684,0.03,87672.0,87662.0,0.03016658]
[1769445523900,0.01140484,87682.0,87664.0,0.03016658]
[1769445524100,0.03,87682.0,87665.0,0.03016658]
[1769445524240,0.0984292,87682.0,87665.0,0.03016658]
[1769445524447,0.03,87677.0,87665.0,0.03016658]
[1769445524654,0.03,87675.0,87665.0,0.03016658]
[1769445525618,0.03,87674.0,87665.0,0.03016658]
[1769445526695,0.04140549,87677.0,87665.0,0.03016658]
[1769445527133,0.03,87675.0,87665.0,0.03016658]
[1769445527347,0.03,87671.0,87665.0,0.03016658]
[1769445527559,0.01200457,87699.0,87671.0,0.00984287]
[1769445527767,0.17532,87690.0,87673.0,0.66409939]
[1769445527963,0.06842398,87689.0,87676.0,0.03466446]
[1769445528187,0.01140393,87689.0,87676.0,0.03466446]
[1769445528379,0.01140419,87687.0,87676.0,0.03466446]
[1769445528557,0.03,87682.0,87676.0,0.03466446]
[1769445528968,0.03,87682.0,87671.0,0.03466446]
[1769445529285,0.03,87682.0,87672.0,0.06987639]
[1769445529677,0.03,87681.0,87672.0,0.06987639]
[1769445529889,0.03,87678.0,87672.0,0.06987639]
[1769445530097,0.01140484,87682.0,87654.0,0.1755912]
[1769445530098,0.03,87666.0,87656.0,0.03466446]
[1769445531076,0.03,87664.0,87654.0,0.0002712]
[1769445531301,0.09844316,87664.0,87654.0,0.0002712]
[1769445531502,0.03,87660.0,87654.0,0.0002712]
[1769445531703,0.00015713,87654.0,87639.0,0.03241563]
[1769445531913,0.04140862,87653.0,87639.0,0.03221588]
[1769445532458,0.03,87650.0,87639.0,0.03221588]
[1769445532639,0.03,87650.0,87632.0,0.68451327]
[1769445532640,0.03,87648.0,87632.0,0.68451327]
[1769445532821,0.03,87648.0,87621.0,0.0002712]
[1769445532822,0.03,87640.0,87621.0,0.0002712]
[1769445533025,0.03,87629.0,87621.0,0.0002712]
[1769445533836,0.03,87626.0,87621.0,0.0002712]
[1769445534042,0.03,87624.0,87621.0,0.0002712]
[1769445534246,0.03,87624.0,87611.0,0.02263136]
[1769445535234,0.03,87622.0,87611.0,0.02263136]
[1769445535655,0.03,87622.0,87607.0,0.17532]
[1769445535656,0.03,87619.0,87606.0,0.0001761]
[1769445536694,0.02243895,87625.0,87606.0,0.0001761]
[1769445536878,0.02243895,87625.0,87602.0,0.02263136]
[1769445537083,0.03637354,87624.0,87603.0,0.02263136]
[1769445537279,0.17536,87628.0,87606.0,0.02263136]
[1769445537726,0.03,87627.0,87606.0,0.02263136]
[1769445538108,0.03,87627.0,87608.0,0.02263136]
[1769445538318,0.03,87627.0,87612.0,0.02263136]
[1769445538522,0.03,87627.0,87614.0,0.02263136]
[1769445538717,0.03,87630.0,87614.0,0.02263136]
[1769445538955,0.03,87630.0,87613.0,0.68451327]
[1769445538956,0.03,87630.0,87616.0,0.02263136]
[1769445539664,0.03,87630.0,87616.0,0.70714463]
[1769445539869,0.01141096,87635.0,87616.0,0.70714463]
[1769445539870,0.03,87629.0,87616.0,0.70714463]
[1769445540076,0.03,87629.0,87601.0,0.68451327]
[1769445540077,0.03,87624.0,87601.0,0.68451327]
[1769445540323,0.00642356,87623.0,87604.0,0.02263136]
[1769445540478,0.00642356,87623.0,87606.0,0.02263136]
[1769445540810,0.03,87624.0,87606.0,0.02263136]
[1769445540811,0.03,87624.0,87613.0,0.02263136]
[1769445541011,0.03,87624.0,87615.0,0.02263136]
[1769445541188,0.01579432,87637.0,87617.0,0.02263136]
[1769445541189,0.03,87623.0,87617.0,0.02263136]
[1769445541509,0.03,87623.0,87607.0,0.68451327]
[1769445541727,0.01141357,87615.0,87598.0,0.02283136]
[1769445541932,0.05243895,87612.0,87598.0,0.02283136]
[1769445542143,0.06385291,87612.0,87598.0,0.02283136]
[1769445542290,0.03,87604.0,87598.0,0.0002]
[1769445542706,0.03,87602.0,87585.0,0.1754]
[1769445542900,0.04141565,87599.0,87584.0,0.02263136]
[1769445543124,0.03,87596.0,87581.0,0.04568]
[1769445543505,0.03,87594.0,87581.0,0.04568]
[1769445544297,0.03,87594.0,87582.0,0.02263136]
[1769445544497,0.03,87593.0,87582.0,0.02263136]
[1769445544733,0.03,87593.0,87573.0,0.02263136]
[1769445545136,0.03,87593.0,87575.0,0.68451327]
[1769445545318,0.03,87593.0,87582.0,0.02263136]
[1769445545617,0.02627749,87601.0,87582.0,0.02263136]
[1769445545618,0.03,87592.0,87582.0,0.02263136]
[1769445546042,0.03,87592.0,87576.0,0.02263136]
[1769445546614,0.06058252,87601.0,87584.0,0.68451327]
[1769445546615,0.03,87591.0,87584.0,0.68451327]
[1769445546795,0.17544,87606.0,87591.0,0.01]
[1769445546997,0.17544,87606.0,87592.0,0.02263136]
[1769445547214,0.02667524,87605.0,87592.0,0.70714463]
[1769445547415,0.01141396,87612.0,87592.0,0.68451327]
[1769445547615,0.03,87612.0,87593.0,0.68451327]
[1769445547842,0.03,87612.0,87594.0,0.02263136]
[1769445548453,0.03,87610.0,87594.0,0.02263136]
[1769445548876,0.03430321,87615.0,87509.0,0.82886009]
[1769445548877,0.03609884,87640.0,87612.0,0.02263136]
[1769445549053,0.03609884,87640.0,87615.0,0.68451327]
[1769445549252,0.03609884,87640.0,87618.0,0.68451327]
[1769445549456,0.03,87639.0,87619.0,0.02263136]
[1769445549635,0.03,87639.0,87620.0,0.68451327]
[1769445549839,0.03,87639.0,87622.0,0.70714463]
[1769445550483,0.03,87638.0,87622.0,0.70714463]
[1769445551036,0.03,87638.0,87622.0,0.02263136]
[1769445551239,0.03,87636.0,87622.0,0.02263136]
[1769445552270,0.03,87635.0,87622.0,0.02263136]
[1769445553278,0.03,87634.0,87623.0,0.68451327]
[1769445553525,0.03,87634.0,87622.0,0.02263136]
[1769445553865,0.03,87621.0,87611.0,0.17544]
[1769445554645,0.03,87621.0,87597.0,0.06849517]
[1769445554646,0.03,87621.0,87605.0,0.02263136]
[1769445554939,0.02288964,87626.0,87594.0,0.0114163]
[1769445554940,0.03,87620.0,87608.0,0.68451327]
[1769445555314,0.72448075,87613.0,87594.0,0.17544]
[1769445555515,0.03,87607.0,87594.0,0.17544]
[1769445556377,0.03,87607.0,87595.0,0.68451327]
[1769445556517,0.03,87606.0,87595.0,0.68451327]
[1769445557521,0.03,87615.0,87595.0,0.68451327]
[1769445558485,0.05345415,87615.0,87594.0,0.17544]
[1769445558696,0.03,87613.0,87594.0,0.84150615]
[1769445559046,0.03,87613.0,87595.0,0.65600823]
[1769445559643,0.03,87612.0,87595.0,0.65600823]
[1769445560670,0.03,87611.0,87595.0,0.65600823]
[1769445560876,0.03,87611.0,87595.0,0.74598419]
[1769445561232,0.03,87611.0,87595.0,0.65600823]
[1769445561362,0.03,87611.0,87598.0,0.02330847]
[1769445561557,0.03,87611.0,87601.0,0.65600823]
[1769445561779,0.0243824,87622.0,87603.0,0.65600823]
[1769445561954,0.03579505,87622.0,87605.0,0.65600823]
[1769445562165,0.11389963,87621.0,87605.0,0.65600823]
[1769445562370,0.0243824,87622.0,87605.0,0.65600823]
[1769445562590,0.11389963,87621.0,87605.0,0.65600823]
[1769445562846,0.03,87620.0,87605.0,0.65600823]
[1769445563215,0.03,87620.0,87605.0,0.6793167]
[1769445563472,0.03,87620.0,87605.0,0.65600823]
[1769445563638,0.03,87620.0,87607.0,0.65600823]
[1769445563843,0.03,87618.0,87607.0,0.65600823]
[1769445564832,0.03,87617.0,87602.0,0.65600823]
[1769445565449,0.03,87612.0,87594.0,0.17544]
[1769445565675,0.03,87606.0,87589.0,0.17544]
[1769445565876,0.03,87604.0,87589.0,0.17544]
[1769445566189,0.0543824,87604.0,87589.0,0.17544]
[1769445566367,0.0543824,87604.0,87590.0,0.65600823]
[1769445567565,0.08027029,87604.0,87590.0,0.65600823]
[1769445567781,0.12496627,87604.0,87589.0,0.17544]
[1769445567978,0.03,87602.0,87589.0,0.17544]
[1769445568806,0.01,87589.0,87586.0,0.0005337]
[1769445569004,0.03,87588.0,87586.0,0.0005337]
[1769445569991,0.03,87587.0,87586.0,0.0005337]
[1769445570864,0.07469598,87587.0,87586.0,1e-08]
[1769445571132,0.03,87579.0,87571.0,0.17544]
[1769445571349,0.03,87579.0,87565.0,0.0002]
[1769445571350,0.03,87575.0,87565.0,0.0002]
[1769445571553,0.0543824,87575.0,87565.0,0.0002]
[1769445572299,0.03,87573.0,87565.0,0.0002]
[1769445572501,0.0243824,87570.0,87553.0,0.17548]
[1769445572726,0.09114849,87606.0,87553.0,0.17548]
[1769445572727,0.03,87567.0,87553.0,0.17548]
[1769445572919,0.03,87565.0,87546.0,0.01175626]
[1769445573142,0.0243824,87566.0,87549.0,0.65600823]
[1769445573452,0.0243824,87566.0,87550.0,0.00013442]
[1769445573655,0.1998624,87575.0,87551.0,0.6793167]
[1769445573858,0.1998624,87575.0,87550.0,0.00013442]
[1769445573859,0.03,87569.0,87550.0,0.00013442]
[1769445574082,0.03,87567.0,87551.0,0.65600823]
[1769445574285,0.03,87567.0,87552.0,0.02330847]
[1769445574434,0.03,87567.0,87553.0,0.65600823]
[1769445575064,0.03,87566.0,87553.0,0.65600823]
[1769445576205,0.03,87565.0,87552.0,0.02330847]
[1769445576420,0.03,87563.0,87550.0,0.65614265]
[1769445576646,0.03,87563.0,87551.0,0.02330847]
[1769445576876,0.03,87563.0,87550.0,0.00013442]
[1769445576877,0.01141643,87593.0,87550.0,0.48114574]
[1769445577091,0.0243824,87591.0,87564.0,0.65600823]
[1769445577315,0.05708626,87587.0,87567.0,0.02330847]
[1769445577529,0.17548,87595.0,87561.0,0.17548]
[1769445577530,0.03,87566.0,87561.0,0.17548]
[1769445577977,0.0243824,87578.0,87562.0,0.65600823]
[1769445578201,0.03579974,87586.0,87562.0,0.6793167]
[1769445578423,0.01141761,87584.0,87562.0,0.6793167]
[1769445578667,0.12768282,87583.0,87562.0,0.6793167]
[1769445578881,0.12768282,87583.0,87562.0,0.02330847]
[1769445578882,0.03,87579.0,87562.0,0.02330847]
[1769445579275,0.03,87577.0,87561.0,0.17548]
[1769445579482,0.03,87575.0,87562.0,0.65600823]
[1769445580524,0.03,87574.0,87562.0,0.65600823]
[1769445580749,0.0792018,87594.0,87565.0,0.02330847]
[1769445580948,0.02212,87594.0,87572.0,0.02330847]
[1769445581150,0.03579766,87602.0,87575.0,0.65600823]
[1769445581370,0.03579766,87602.0,87570.0,0.01141943]
[1769445581371,0.03,87601.0,87579.0,0.65600823]
[1769445581571,0.03,87601.0,87582.0,0.02330847]
[1769445581908,0.03,87601.0,87585.0,0.65600823]
[1769445582061,0.03,87599.0,87577.0,0.65600823]
[1769445582240,0.03,87584.0,87577.0,0.65600823]
[1769445582649,0.03,87584.0,87576.0,0.17552]
[1769445583070,0.02397658,87598.0,87577.0,0.65600823]
[1769445583232,0.03,87597.0,87579.0,0.65600823]
[1769445583431,0.03,87597.0,87579.0,0.6793167]
[1769445583860,0.03,87597.0,87576.0,0.17552]
[1769445583861,0.03,87597.0,87581.0,0.65600823]
[1769445584109,0.03,87597.0,87582.0,0.65600823]
[1769445584317,0.03,87596.0,87583.0,0.02330847]
[1769445584695,0.03,87596.0,87576.0,0.17552]
[1769445584696,0.04246656,87596.0,87576.0,0.17552]
[1769445584909,0.03,87588.0,87576.0,0.17552]
[1769445585284,0.03,87586.0,87576.0,0.17552]
[1769445585463,0.03,87575.0,87560.0,0.04572]
[1769445586572,0.03,87580.0,87560.0,0.70172823]
[1769445586785,0.03,87580.0,87552.0,0.01142178]
[1769445586786,0.0243824,87573.0,87547.0,0.17552]
[1769445586999,0.12228004,87579.0,87555.0,0.02330847]
[1769445587184,0.11086178,87579.0,87558.0,0.65600823]
[1769445587352,0.11086178,87579.0,87559.0,0.02330847]
[1769445587589,0.11086178,87579.0,87560.0,0.65600823]
[1769445587590,0.08647938,87579.0,87560.0,0.65600823]
[1769445587747,0.001,87580.0,87562.0,0.02330847]
[1769445587950,0.001,87580.0,87562.0,0.6793167]
[1769445588167,0.03,87579.0,87562.0,0.6793167]
[1769445588371,0.03,87579.0,87564.0,0.65600823]
[1769445588704,0.03,87579.0,87564.0,0.6793167]
[1769445589066,0.03,87588.0,87566.0,0.62547685]
[1769445589270,0.03,87588.0,87570.0,0.02398819]
[1769445589505,0.03,87583.0,87570.0,0.02398819]
[1769445589948,0.03,87583.0,87570.0,0.01552676]
[1769445590147,0.03,87579.0,87566.0,0.17552]
[1769445590522,0.13503285,87579.0,87566.0,0.17552]
[1769445590720,0.12361459,87579.0,87566.0,0.17552]
[1769445591282,0.03,87576.0,87559.0,0.17552]
[1769445591434,0.03,87576.0,87562.0,0.62547685]
[1769445591606,0.03,87576.0,87563.0,0.64946504]
[1769445591806,0.03,87576.0,87564.0,0.02398819]
[1769445592368,0.03,87575.0,87565.0,0.62547685]
[1769445592525,0.03,87575.0,87564.0,0.02398819]
[1769445593318,0.03,87574.0,87564.0,0.02398819]
[1769445594160,0.03,87574.0,87561.0,0.17552]
[1769445594524,0.02393629,87588.0,87574.0,0.01]
[1769445594690,0.05708834,87584.0,87570.0,0.62547685]
[1769445594892,0.01141721,87587.0,87568.0,0.02398819]
[1769445595098,0.09361459,87584.0,87568.0,0.02398819]
[1769445595426,0.09361459,87584.0,87564.0,0.62547685]
[1769445595427,0.03,87579.0,87564.0,0.62547685]
[1769445595561,0.03,87577.0,87562.0,0.017552]
[1769445595860,0.03,87577.0,87564.0,0.62547685]
[1769445596070,0.03,87577.0,87564.0,0.64946504]
[1769445596680,0.03,87582.0,87564.0,0.64946504]
[1769445596896,0.12361459,87582.0,87564.0,0.64946504]
[1769445597124,0.14755088,87582.0,87564.0,0.64946504]
[1769445597952,0.09361459,87581.0,87564.0,0.64946504]
[1769445598180,0.03,87580.0,87564.0,0.64946504]
[1769445598612,0.54060919,87580.0,87554.0,0.02398819]
[1769445598843,0.03,87567.0,87555.0,0.17552]
[1769445599064,0.03,87567.0,87557.0,0.64946504]
[1769445599279,0.03,87567.0,87555.0,0.17552]
[1769445599494,0.03,87567.0,87556.0,0.62547685]
[1769445599734,0.03,87566.0,87556.0,0.64946504]
[1769445600179,0.09361459,87575.0,87556.0,0.64946504]
[1769445600400,0.09361459,87575.0,87555.0,0.17552]
[1769445600401,0.09361459,87573.0,87555.0,0.17552]
[1769445600563,0.0114193,87571.0,87553.0,0.0002275]
[1769445600767,0.03,87560.0,87553.0,0.0002275]
[1769445601180,0.03,87556.0,87553.0,5.688e-05]
[1769445601352,0.03,87552.0,87550.0,0.00013442]
[1769445602318,0.02393629,87561.0,87550.0,0.00013442]
[1769445602472,0.03,87560.0,87552.0,0.01]
[1769445602685,0.03,87560.0,87552.0,0.63547685]
[1769445603287,0.03,87560.0,87552.0,0.01]
[1769445603489,0.03,87559.0,87552.0,0.01]
[1769445603689,0.03,87559.0,87550.0,0.00013442]
[1769445603918,0.09835301,87577.0,87551.0,0.64946504]
[1769445604163,0.11388541,87576.0,87554.0,0.02398819]
[1769445604444,0.03,87578.0,87559.0,0.64946504]
[1769445604644,0.02393629,87579.0,87560.0,0.02398819]
[1769445604645,0.03,87576.0,87560.0,0.02398819]
[1769445604819,0.03,87576.0,87553.0,0.01142165]
[1769445604820,0.03,87576.0,87563.0,0.62547685]
[1769445605020,0.03,87576.0,87564.0,0.64946504]
[1769445605615,0.03,87575.0,87564.0,0.64946504]
[1769445606725,0.09114849,87592.0,87568.0,0.02398819]
[1769445606952,0.02393629,87593.0,87572.0,0.02398819]
[1769445606953,0.11388107,87591.0,87572.0,0.02398819]
[1769445607107,0.11388107,87590.0,87576.0,0.02398819]
[1769445607311,0.02424799,87600.0,87580.0,0.02398819]
[1769445607566,0.02424799,87600.0,87582.0,0.64946504]
[1769445607785,0.03,87599.0,87584.0,0.62547685]
[1769445607950,0.03,87599.0,87584.0,0.69042335]
[1769445608161,0.02424799,87600.0,87565.0,0.02398819]
[1769445608162,0.03,87591.0,87565.0,0.02398819]
[1769445608366,0.03,87585.0,87566.0,0.62547685]
[1769445608554,0.03,87585.0,87568.0,0.62547685]
[1769445608751,0.03,87585.0,87571.0,0.02398819]
[1769445609203,0.03,87585.0,87550.0,0.49256778]
[1769445609204,0.03,87575.0,87553.0,0.02398819]
[1769445609446,0.01448743,87585.0,87550.0,0.00013442]
[1769445609447,0.03,87569.0,87550.0,0.00013442]
[1769445609972,0.05393629,87569.0,87550.0,0.00013442]
[1769445610528,0.05393629,87569.0,87551.0,0.62547685]
[1769445612207,0.05393629,87569.0,87550.0,0.00013442]
[1769445612208,0.03,87568.0,87552.0,0.02398819]
[1769445612410,0.09114849,87591.0,87552.0,0.02398819]
[1769445612411,0.01141748,87585.0,87557.0,0.02398819]
[1769445612623,0.01141734,87586.0,87560.0,0.62547685]
[1769445612823,0.011418,87581.0,87563.0,0.02398819]
[1769445613287,0.04141826,87579.0,87561.0,0.62547685]
[1769445613426,0.03,87577.0,87561.0,0.62547685]
[1769445614243,0.03,87577.0,87561.0,0.64946504]
[1769445614420,0.03,87576.0,87561.0,0.64946504]
[1769445614635,0.03,87576.0,87561.0,0.62547685]
[1769445615279,0.01141748,87585.0,87563.0,0.62547685]
[1769445615536,0.03,87584.0,87565.0,0.64946504]
[1769445615659,0.03,87584.0,87567.0,0.62547685]
[1769445615856,0.03,87584.0,87570.0,0.02398819]
[1769445616056,0.0114163,87594.0,87563.0,0.17552]
[1769445616057,0.05708164,87594.0,87574.0,0.02398819]
[1769445616290,0.01141669,87591.0,87575.0,0.0649465]
[1769445616501,0.03,87588.0,87575.0,0.0649465]
[1769445616705,0.05708416,87590.0,87561.0,0.17552]
[1769445616706,0.03,87579.0,87561.0,0.17552]
[1769445616903,0.03,87576.0,87561.0,0.17552]
[1769445617113,0.00114874,87575.0,87561.0,0.17552]
[1769445617313,0.05508503,87574.0,87562.0,0.02452282]
[1769445617511,0.05508503,87574.0,87561.0,0.17552]
[1769445618123,0.02402592,87574.0,87561.0,0.17552]
[1769445618331,0.03,87573.0,87561.0,0.17552]
[1769445618528,0.03,87573.0,87564.0,0.65567078]
[1769445618690,0.01141721,87587.0,87567.0,0.02363411]
[1769445618889,0.01141734,87586.0,87569.0,0.02363411]
[1769445619092,0.02272434,87589.0,87569.0,0.02363411]
[1769445619291,0.03,87587.0,87569.0,0.02363411]
[1769445619900,0.04141748,87585.0,87569.0,0.02363411]
[1769445620108,0.03,87585.0,87569.0,0.02363411]
[1769445620324,0.03,87585.0,87570.0,0.06992203]
[1769445620902,0.00010022,87587.0,87570.0,0.06992203]